Cogmind - Beta 13 @@@ ROGUE MODE // 2024.04.28 @ 10:50:15 Player: MiNathan Result: Destroyed by 3P-KIL(R) with Subdweller Machine Gun Performance ------------- Evolutions (0) 0 Regions Visited (3) 600 Robots Destroyed (2) 10 Value Destroyed (53) 53 Prototype IDs (0) 0 Alien Tech Used (0) 0 Bonus (0) 0 TOTAL SCORE: 663 Bonus ------- None Cogmind --------- Core Integrity 0/250 Matter 300/300 Energy 98/100 System Corruption 5% Temperature Cool (0) Movement Core (50) Location -10/Subcaves Parts ------- > --- POWER (1) -------- (None) > --- PROPULSION (2) --- (None) > --- UTILITY (2) ------ (None) > --- WEAPON (2) ------- (None) > --- INVENTORY (5) ---- (None) Peak State ------------ > --- POWER ------------ Light Ion Engine > --- PROPULSION ------- Light Treads Light Treads > --- UTILITY ---------- Signal Interpreter > --- WEAPON ----------- Small Laser Small Laser > --- INVENTORY -------- (None) [Rating: 6] Favorites ----------- Power Light Ion Engine Engine Light Ion Engine Propulsion Light Treads Treads Light Treads Utility Signal Interpreter Processor Signal Interpreter Weapon Mining Laser Energy Gun Small Laser Special Weapon Mining Laser Build | -11 -10 -10 -10 ------- Run | Yrd Mat Min Sub Slots Evolved . | . . . . Power . | . . . . Propulsion . | . . . . Utility . | . . . . Weapon . | . . . . Parts Attached 8 | 5 3 . . Power 1 | 1 . . . Engine 1 | 1 . . . Core . | . . . . Reactor . | . . . . Propulsion 2 | 2 . . . Treads 2 | 2 . . . Leg . | . . . . Wheel . | . . . . Hover . | . . . . Flight . | . . . . Utility 1 | . 1 . . Device . | . . . . Storage . | . . . . Processor 1 | . 1 . . Hackware . | . . . . Protection . | . . . . Artifact . | . . . . Weapon 4 | 2 2 . . Energy Gun 2 | 2 . . . Energy Cannon . | . . . . Ballistic Gun . | . . . . Ballistic Cannon . | . . . . Launcher . | . . . . Special Weapon 2 | . 2 . . Impact Weapon . | . . . . Slashing Weapon . | . . . . Piercing Weapon . | . . . . Special Melee Weapon . | . . . . Unidentified Prototypes . | . . . . Parts Lost 6 | . . . 6 Power 1 | . . . 1 Propulsion 2 | . . . 2 Utility 1 | . . . 1 Weapon 2 | . . . 2 Highest Loss Streak 6 | . . . 6 To Critical Strikes . | . . . . Average Slot Usage (%) 80 | . 76 85 71 Engine 13 | . 14 14 11 Treads 27 | . 28 28 24 Processor 12 | . 5 14 13 Energy Gun 3 | . 28 . . Special Weapon 23 | . . 28 22 Naked Turns 17 | . . . 17 Heaviest Build 5 | 5 5 5 5 Greatest Support 40 | 40 40 40 40 Greatest Overweight (x) . | . . . . Average Overweight (x) . | . . . . Largest Inventory Capacity 5 | 5 5 5 5 Average Capacity 5 | 5 5 5 5 Most Carried 3 | 3 2 3 3 Average Carried 2 | . . 2 2 Final Capacity 5 | 5 5 5 5 Final Carried 3 | . . 3 . Class Distribution -------------------- 100% | Mutant Dominant Class ---------------- Mutant | -10/Materials Mutant | -10/Mines Mutant | -10/Subcaves Resources | -11 -10 -10 -10 ----------- Run | Yrd Mat Min Sub Matter Collected 280 | 200 60 20 . Remotely . | . . . . Salvage Created 159 | . 159 . . Parts 7 | . 7 . . Haulers Intercepted . | . . . . Recyclers Shooed 1 | . 1 . . Parts Field Recycled . | . . . . Retrieved Matter . | . . . . Parts Self-Destructed . | . . . . Prevented . | . . . . Kills | -11 -10 -10 -10 ------- Run | Yrd Mat Min Sub Combat Hostiles Destroyed 1 | . 1 . . Guns 1 | . 1 . . Classes Destroyed 2 | . 2 . . Recycler 1 | . 1 . . Grunt 1 | . 1 . . Best Kill Streak 2 | . 2 . . Combat Bots Only 1 | . 1 . . Max Kills in Single Turn 1 | . 1 . . Gunslinging . | . . . . Exploded . | . . . . Melee . | . . . . Uniques/NPCs Destroyed . | . . . . Combat | -11 -10 -10 -10 -------- Run | Yrd Mat Min Sub Hostile Shots Fired 42 | . . . 42 Missed 10 | . . . 10 Damage Taken 679 | . . . 679 Core 252 | . . . 252 Absorbed by Shields . | . . . . Core Remaining (%) 100 | 100 . . . Volleys Fired 13 | . 3 2 8 Largest 2 | . 2 2 2 Hottest 200 | . 80 200 200 Shots Fired 23 | . 6 4 13 Gun 6 | . 6 . . Cannon . | . . . . Launcher . | . . . . Special 17 | . . 4 13 Kinetic . | . . . . Thermal 23 | . 6 4 13 Explosive . | . . . . Electromagnetic . | . . . . Robot Hit Streak 4 | . 1 3 4 Robot Miss Streak 2 | . . 2 2 Penetration Max . | . . . . Secondary Targets . | . . . . Shots Hit Robots 10 | . 1 2 7 Core Hits 4 | . 3 . 1 Critical Kills . | . . . . Critical Parts Destroyed . | . . . . Critical Strikes . | . . . . Melee Attacks . | . . . . Impact . | . . . . Slashing . | . . . . Piercing . | . . . . Sneak Attacks . | . . . . Combat Hostiles . | . . . . Follow-up Attacks . | . . . . Damage Inflicted 307 | . 44 48 215 Guns 44 | . 44 . . Cannons . | . . . . Explosions . | . . . . Melee . | . . . . Ramming 23 | . . . 23 Kinetic . | . . . . Thermal 284 | . 44 48 192 Explosive . | . . . . Electromagnetic . | . . . . Impact . | . . . . Slashing . | . . . . Piercing . | . . . . Highest Corruption 5 | . 1 1 5 Average Corruption 1 | . 1 1 1 Corruption Purged . | . . . . Corruption Blocked . | . . . . Effects 7 | . 1 5 1 Message Errors 3 | . . 3 . Heat Flow Errors 3 | . . 2 1 Energy Discharges 1 | . 1 . . Overload Shots . | . . . . Overflow Damage . | . . . . Projectiles . | . . . . Explosions . | . . . . Melee . | . . . . Knockbacks 1 | . . . 1 Impact 1 | . . . 1 Kinetic . | . . . . Secondary . | . . . . Self-Inflicted Damage 9 | . . . 9 Shots . | . . . . Rammed 10 | . . . 10 Targets Rammed 10 | . . . 10 Kicked . | . . . . Crushed . | . . . . Highest Temperature 256 | . 54 256 99 Average Temperature 79 | . 29 92 60 Received Heat Transfer 186 | . . . 186 Siege Activations . | . . . . Robots Corrupted . | . . . . Combat Hostiles . | . . . . Parts Fried . | . . . . Impact Corruptions . | . . . . Robots Melted . | . . . . Combat Hostiles . | . . . . Parts Melted . | . . . . Heat Transferred 600 | . 100 100 400 Parts Sabotaged . | . . . . Parts Stolen . | . . . . Parts Stripped . | . . . . Power Chain Reactions . | . . . . Alert | -11 -10 -10 -10 ------- Run | Yrd Mat Min Sub Peak Influence 50 | . 50 28 . Initial 19 | . . 19 . Average 11 | . 13 11 . Maximum Alert Level . | . . . . Low Security (%) 100 | 100 100 100 . Level 1 . | . . . . Level 2 . | . . . . Level 3 . | . . . . Level 4 . | . . . . Level 5 . | . . . . High Security . | . . . . Max Security . | . . . . Squads Dispatched 1 | . . 1 . Investigation 1 | . . 1 . Extermination . | . . . . Reinforcement . | . . . . Assault . | . . . . Garrison . | . . . . Intercept . | . . . . Searches Triggered . | . . . . Construction Impeded . | . . . . Haulers Reinforced . | . . . . Active Scanning Responses . | . . . . Cargo Convoy Interrupts . | . . . . Stealth | -11 -10 -10 -10 --------- Run | Yrd Mat Min Sub Distress Signals 1 | . 1 . . Communications Jammed . | . . . . Distress Signals . | . . . . Times Spotted 4 | . 2 . 2 Peak Tracking Total 2 | . 1 . 2 Tactical Retreats . | . . . . Traps | -11 -10 -10 -10 ------- Run | Yrd Mat Min Sub Traps Triggered 1 | . 1 . . Indirectly . | . . . . Trap Hack Attempts . | . . . . Triggered . | . . . . Disarmed . | . . . . Reprogrammed . | . . . . Reused . | . . . . Traps Extracted . | . . . . Installed . | . . . . Triggered . | . . . . Most Traps Carried 3 | . . 3 3 Machines | -11 -10 -10 -10 ---------- Run | Yrd Mat Min Sub Machines Disabled . | . . . . Max in Single Turn . | . . . . Machines Repaired . | . . . . Machines Dismantled . | . . . . Machines Sabotaged . | . . . . Overloaded Fab Kills . | . . . . Hacking | -11 -10 -10 -10 --------- Run | Yrd Mat Min Sub Machines Accessed 1 | . . 1 . Terminals 1 | . . 1 . Fabricators . | . . . . Repair Stations . | . . . . Recycling Units . | . . . . Scanalyzers . | . . . . Garrison Access . | . . . . Total Hacks 4 | . . 4 . Successful 2 | . . 2 . Failed 2 | . . 2 . Catastrophic . | . . . . Database Lockouts . | . . . . Manual . | . . . . Terminals 4 | . . 4 . Fabricators . | . . . . Repair Stations . | . . . . Recycling Units . | . . . . Scanalyzers . | . . . . Garrison Access . | . . . . Terminal Hacks 2 | . . 2 . Alert Level 1 | . . 1 . Patrol Status 1 | . . 1 . Fabricator Hacks . | . . . . Repair Station Hacks . | . . . . Recycling Unit Hacks . | . . . . Scanalyzer . | . . . . Garrison Access Hacks . | . . . . Unauthorized Hacks . | . . . . Terminals . | . . . . Fabricators . | . . . . Repair Stations . | . . . . Recycling Units . | . . . . Scanalyzers . | . . . . Garrison Access . | . . . . Data Cores Recovered . | . . . . Used . | . . . . Hacking Detections 1 | . . 1 . Full Trace Events 1 | . . 1 . Feedback Events . | . . . . Feedback Blocked . | . . . . Robot Schematics Acquired . | . . . . Robots Built . | . . . . Authchips . | . . . . Time . | . . . . Total Robot Build Rating . | . . . . Part Schematics Acquired . | . . . . Parts Built . | . . . . Authchips . | . . . . Time . | . . . . Total Part Build Rating . | . . . . Parts Repaired . | . . . . Time . | . . . . Parts Recycled . | . . . . Recycled Matter . | . . . . Retrieved Matter . | . . . . Retrieved Components . | . . . . Parts Scanalyzed . | . . . . Part Schematics Acquired . | . . . . Parts Damaged . | . . . . Bothacking | -11 -10 -10 -10 ------------ Run | Yrd Mat Min Sub Used RIF Installer . | . . . . Robots Hacked . | . . . . Non-combat . | . . . . Combat . | . . . . Robot Hacks Applied . | . . . . Relay Couplers Released . | . . . . Fabnet Peak Effective % . | . . . . Robots Rewired . | . . . . Allies Hacked . | . . . . Hacks Repelled . | . . . . Allies | -11 -10 -10 -10 -------- Run | Yrd Mat Min Sub Total Allies . | . . . . Largest Group . | . . . . Highest-Rated Group . | . . . . Highest-Rated Ally . | . . . . Total Orders . | . . . . Ally Attacks . | . . . . Total Damage . | . . . . Kills . | . . . . Allies Corrupted . | . . . . Allies Melted . | . . . . Intel | -11 -10 -10 -10 ------- Run | Yrd Mat Min Sub Robot Analysis Total . | . . . . Derelict Logs Recovered 3 | . . 2 1 Drone Launches . | . . . . Drone Recoveries . | . . . . Exploration | -11 -10 -10 -10 ------------- Run | Yrd Mat Min Sub Turns Passed 1541 | 58 189 920 374 Spaces Moved 864 | 37 83 511 233 Core 72 | 9 . . 63 Treads 792 | 28 83 511 170 Legs . | . . . . Wheels . | . . . . Hover . | . . . . Flight . | . . . . Fastest Speed 50 | 50 160 160 50 Average Speed 150 | 133 160 160 130 Slowest Speed 160 | 160 160 160 160 Overloaded Moves . | . . . . Propulsion Burnouts . | . . . . Robots Hopped . | . . . . Cave-ins Triggered . | . . . . Exploration Rate (%) 33 | 4 23 90 17 Regions Visited 3 Branch Regions 2 Pre-discovered Areas 2 | . . 1 1 Known Exits Taken 2 | . 1 1 . Unknown Exits Taken 1 | 1 . . . Scrap Searched 1 | . . 1 . Spaces Dug . | . . . . Terrain Destroyed 2 | . . 2 . Melee . | . . . . Projectile 2 | . . 2 . AOE . | . . . . Terrain Rammed . | . . . . Walls Destroyed . | . . . . Machines Disabled . | . . . . Actions | -11 -10 -10 -10 --------- Run | Yrd Mat Min Sub Total 1046 | 46 133 602 265 Wait 138 | . 40 87 11 Move 861 | 36 82 510 233 Hop . | . . . . Pick Up 11 | 5 3 3 . Fast Attach . | . . . . Attach 6 | 5 1 . . Detach . | . . . . Swap 2 | . 2 . . Drop 5 | . 2 . 3 Fire 13 | . 3 2 8 Melee . | . . . . Ram 8 | . . . 8 Kick . | . . . . Crush 2 | . . . 2 Escape Stasis . | . . . . Rewire . | . . . . Trap . | . . . . Miscellaneous . | . . . . Route ------- -11/Scrapyard -10/Materials -10/Mines (discovered 3 exits: *Mat x2 / *Sub) -10/Subcaves History --------- Turn | Location | Event 7 | -11/Scrapyard | Discovered new exit (range 15) 59 | -11/Scrapyard | Entered Materials 162 | -10/Materials | Discovered new exit (range 15) 170 | -10/Materials | Met 8R-AWN 221 | -10/Materials | Identified exit to Mines 248 | -10/Materials | Entered Mines 250 | -10/Mines | Followed 8R-AWN into the Mines 262 | -10/Mines | Met a Derelict bent on vengeance 305 | -10/Mines | Build established: Mutant 415 | -10/Mines | Found a hidden stash of uninstalled traps 651 | -10/Mines | Discovered new exit (range 9) 664 | -10/Mines | Identified exit to Materials 855 | -10/Mines | Discovered exit to Materials (range 5) 1055 | -10/Mines | Learned Materials terminal intel 1058 | -10/Mines | Learned location of Zion (-6) 1162 | -10/Mines | Discovered new exit (range 5) 1167 | -10/Mines | Identified exit to Subcaves 1168 | -10/Mines | Entered Subcaves 1508 | -10/Subcaves | Core integrity fell below 50% 1516 | -10/Subcaves | Core integrity fell below 20% 1542 | -10/Subcaves | Destroyed by 3P-KIL(R) with Subdweller Machine Gun Last Messages --------------- System corrupted: Heat flow error (+137). Mining Laser destroyed. Lgt. Ion Engine destroyed. Mining Laser destroyed. Dropped EMP Trap. Lgt. Treads destroyed. Dropped EMP Trap. Slammed into ZS-CMF(R). Lgt. Treads destroyed. Slammed into ZS-CMF(R). Destabilizing: Core damaged (-12). Slammed into ZS-CMF(R). ZS-CMF(R) knocked back. Destabilizing: System corrupted (+2). Slammed into ZS-CMF(R). Destabilizing: System corrupted (+2). Slammed into ZS-CMF(R). Signal Interpreter destroyed. Subatomizers dissect the Wheel. 3P-KIL(R): "YOUGO!" Map ----- +----------------------------------------------------+ | ???????????????# ## #????????????#### | | ???????????????# ?## #???????????????### | | ???????????????## ### ##????????????????? | | ????????????????## #????????????????? | | ?????????????????# = #????????????????? | | ?????????????????## | ##????????????????? | | ???????????????### ## ##?????????????????? | | ???????????????# # ####??????????????????? | | ???????????????# #????????????????????? | | ???????????????# ###???????????????????? | | ????????????#??### #???????????????????? | | ???????????## ?# #???????????????????? | | ???????????# &"##< #???????????????????? | | ????????????# & #???????????????????? | | ???????????#$ # #R #???????????????????? | | ???????????#??### #???????????????????? | | ???????????????# #?????###???????????? | | ???????????????### #?### ##??????????? | | ????????????????# # ### ???????????? | | ????????????????## ### ?????????????? | | ????????????????# ### #???????????????? | | ????????????????## ## #?????????????????? | | ????????????????# # #??????????????????? | | ????????????????## #??????????????????? | | ???????????????## ##??????????????????? | | ???????????????# @ ##???????????????????? | | ???????????????### ##????????????????????? | | ?????????????????# #?????????????????????? | | ?????????????????# ?????????????????????? | | ?????????????????# ????????????????????? | | ?????????????????# ???????????????????? | | ????????????????? ## ???????????????????? | | ????????????????? ##?# ??????????????????? | | ????????????????? #??? ?????????????????? | | ???????????????? ##????? ????????????????? | | ???????????????? #??????? ????????????????? | | ????????????????#?????????##???????????????? | | ???????????????????????????????????????????? | | ???????????????????????????????????????????? | | ???????????????????????????????????????????? | | ???????????????????????????????????????????? | | ???????????????????????????????????????????? | | ???????????????????????????????????????????? | | ???????????????????????????????????????????? | | ???????????????????????????????????????????? | | ???????????????????????????????????????????? | | ???????????????????????????????????????????? | | ???????????????????????????????????????????? | | ???????????????????????????????????????????? | | ???????????????????????????????????????????? | +----------------------------------------------------+ Best States ------------- Heat Dissipation 25 Energy Generation 10 Energy Capacity 125 Matter Stores 300 Matter Capacity 300 Sight Range 16 Terrain Scan Density 10 Evasion (%) 50 Recoil Reduction 2 Item Schematics ----------------- None Robot Schematics ------------------ None Fabricated ------------ Nothing Alien Tech Used ----------------- None Achievements -------------- None Challenges ------------ None Game ------ Seed PrecisionCorruptionCutter Manual? 0 Play Time 00:07:26 Cumulative 3.9 hours Start 2024.04.28 @ 10:44:36 End 2024.04.28 @ 10:50:15 Sessions 1 Manual Loads 0 Difficulty Rogue Special Mode None Game No. 17 Rogue 3 Adventurer 14 Explorer 0 Win Type - Total 0 Types 0/0/0/0/0/0/0/0/0 Lore% 8 Gallery% 12 Achievement% 13 Wizard Run 0 Options --------- Layout 1 ASCII 0 Keyboard 0 Movement Mouse Keybinds 0 Fullscreen 2 Font 24/Proggy Map View 50x35 Zoom Use 0% Tactical HUD 0 Map Filters NONE Filters NONE Steam 1 RUN: 7119203b-0cb1-427c-a828-d482af4cae61